bitfinex/quotes_SOLUSD_20241022
["timestamp","ask_amount","ask_price","bid_price","bid_amount"]
[1729564429856,0.1,167.36,167.26,15.0259]
[1729564430460,6.0748,167.37,167.26,15.0259]
[1729564430643,0.1,167.36,167.26,15.0259]
[1729564431042,6.0748,167.37,167.26,15.0259]
[1729564431542,5.9744,167.38,167.26,15.0259]
[1729564431742,0.1,167.37,167.26,15.0259]
[1729564432043,6.0744,167.38,167.26,15.0259]
[1729564432241,0.1,167.37,167.26,15.0259]
[1729564432453,6.0741,167.39,167.27,23.776884]
[1729564432657,22.552,167.41,167.27,23.776884]
[1729564432827,22.552,167.41,167.28,0.1]
[1729564433353,0.1,167.4,167.28,0.1]
[1729564433563,28.6253,167.41,167.28,0.1]
[1729564433748,28.5253,167.41,167.28,0.1]
[1729564434357,22.652,167.41,167.28,0.1]
[1729564434651,22.552,167.41,167.28,0.1]
[1729564434864,22.552,167.41,167.27,23.876884]
[1729564435032,22.552,167.41,167.28,0.1]
[1729564436961,22.652,167.41,167.28,0.1]
[1729564438358,22.552,167.41,167.28,0.1]
[1729564439348,22.552,167.41,167.29,0.1]
[1729564440361,16.337,167.41,167.29,0.1]
[1729564440541,16.337,167.41,167.31,23.776884]
[1729564442354,16.337,167.41,167.31,30.113984]
[1729564446069,0.1,167.43,167.31,30.213984]
[1729564446746,6.0724,167.44,167.31,30.213984]
[1729564447366,0.1,167.43,167.31,30.213984]
[1729564447669,6.0724,167.44,167.31,30.213984]
[1729564447848,0.1,167.43,167.31,30.213984]
[1729564449063,0.2939621,167.45,167.31,30.213984]
[1729564449266,0.2939621,167.45,167.32,0.1]
[1729564449448,0.1,167.44,167.32,0.1]
[1729564468804,0.1,167.44,167.31,36.43729148]
[1729564469011,0.1,167.44,167.32,0.1]
[1729564471314,0.1,167.44,167.31,36.43729148]
[1729564472089,0.1,167.44,167.32,0.1]
[1729564473511,0.1939621,167.45,167.32,0.1]
[1729564473726,0.1939621,167.45,167.35,16.032]
[1729564474014,0.1939621,167.45,167.35,23.23064882]
[1729564474912,0.1939621,167.45,167.36,23.776884]
[1729564475214,0.1939621,167.45,167.36,30.541384]
[1729564478514,0.1939621,167.45,167.36,30.441384]
[1729564478717,0.1939621,167.45,167.36,30.541384]
[1729564480900,0.1939621,167.45,167.36,30.441384]
[1729564481117,0.1939621,167.45,167.36,30.541384]
[1729564482711,0.1939621,167.45,167.36,6.7645]
[1729564484122,0.1939621,167.45,167.36,6.6645]
[1729564484338,0.1939621,167.45,167.35,23.13064882]
[1729564486421,0.1939621,167.45,167.36,0.1]
[1729564490301,0.1939621,167.45,167.35,23.23064882]
[1729564491506,0.1939621,167.45,167.36,0.1]
[1729564491925,0.1939621,167.45,167.35,23.23064882]
[1729564492222,0.1939621,167.45,167.36,0.1]
[1729564493303,0.1939621,167.45,167.35,23.23064882]
[1729564494025,0.1939621,167.45,167.35,23.13064882]
[1729564495323,0.2939621,167.45,167.35,16.032]
[1729564500926,23.876884,167.43,167.34,6.221625]
[1729564501130,0.2939621,167.45,167.34,6.221625]
[1729564501312,24.0708461,167.45,167.34,6.221625]
[1729564506859,0.1939621,167.45,167.34,6.221625]
[1729564507144,0.1939621,167.45,167.34,6.321625]
[1729564509228,0.1939621,167.45,167.34,6.221625]
[1729564511638,24.0708461,167.45,167.34,6.221625]
[1729564512316,24.0708461,167.45,167.34,6.321625]
[1729564514636,6.0724,167.44,167.34,6.221625]
[1729564514826,0.1,167.44,167.34,6.221625]
[1729564515630,0.1,167.43,167.34,6.221625]
[1729564515832,0.1,167.41,167.34,6.221625]
[1729564516030,0.1,167.36,167.29,27.01645411]
[1729564516240,0.1,167.36,167.27,15.6815]
[1729564516623,23.876884,167.37,167.27,15.6815]
[1729564517330,0.1,167.37,167.27,15.6815]
[1729564517532,23.876884,167.38,167.27,15.6815]
[1729564517727,0.1,167.37,167.27,15.6815]
[1729564518040,23.876884,167.38,167.27,15.6815]
[1729564518344,23.776884,167.38,167.27,15.6815]
[1729564518644,23.876884,167.38,167.27,15.6815]
[1729564519038,0.1,167.37,167.27,15.6815]
[1729564523042,0.1,167.34,167.26,6.22078406]
[1729564523349,23.876884,167.35,167.26,6.22078406]
[1729564523542,0.1,167.34,167.26,6.22078406]
[1729564524645,23.876884,167.35,167.26,6.22078406]
[1729564527621,0.1,167.34,167.26,6.22078406]
[1729564528040,23.876884,167.32,167.26,6.22078406]
[1729564528242,23.876884,167.32,167.22,16.2498]
[1729564528445,23.776884,167.32,167.23,6.22177863]
[1729564528649,6.6447,167.33,167.23,6.22177863]
[1729564528952,0.1,167.34,167.23,6.22177863]
[1729564529446,23.876884,167.35,167.23,6.22177863]
[1729564529650,23.876884,167.35,167.23,12.80907863]
[1729564531957,23.776884,167.35,167.23,12.80907863]
[1729564533036,23.876884,167.35,167.23,12.80907863]
[1729564533641,0.1,167.34,167.23,12.80907863]
[1729564536540,0.1,167.34,167.23,12.90907863]
[1729564542546,15.3349,167.36,167.25,0.1]
[1729564542753,15.3349,167.36,167.26,7.19864882]
[1729564543061,6.4087,167.37,167.27,16.0395]
[1729564545256,6.5087,167.37,167.27,16.0395]
[1729564549866,6.4087,167.37,167.27,16.0395]
[1729564553864,6.5087,167.37,167.27,16.0395]
[1729564556459,6.4087,167.37,167.27,16.0395]
[1729564558579,6.5087,167.37,167.27,16.0395]
[1729564560167,6.4087,167.37,167.27,16.0395]
[1729564560858,6.5087,167.37,167.27,16.0395]
[1729564561256,6.4087,167.37,167.27,16.0395]
[1729564561655,23.776884,167.39,167.27,16.0395]
[1729564562370,16.45,167.4,167.27,16.0395]
[1729564562371,16.35,167.4,167.28,6.1883]
[1729564562551,16.35,167.4,167.28,13.28694882]
[1729564562858,0.1,167.44,167.3,15.9091]
[1729564563044,23.2916621,167.45,167.3,23.10774882]
[1729564563247,0.1,167.43,167.3,23.10774882]
[1729564563447,0.1,167.43,167.31,0.1]
[1729564565961,23.2916621,167.45,167.31,23.776884]
[1729564566153,0.1,167.43,167.3,23.00774882]
[1729564566355,0.1,167.43,167.3,23.10774882]
[1729564568350,23.1916621,167.45,167.31,23.776884]
[1729564568557,23.1916621,167.45,167.33,6.5257]
[1729564568757,16.5477621,167.45,167.34,15.7177]
[1729564568975,0.1939621,167.45,167.34,22.81634882]
[1729564570974,0.1939621,167.45,167.34,15.7177]
[1729564572173,0.1939621,167.45,167.35,23.776884]
[1729564572581,0.1939621,167.45,167.35,23.876884]
[1729564574159,0.1939621,167.45,167.35,23.776884]
[1729564574967,0.1939621,167.45,167.35,23.876884]
[1729564577681,0.1939621,167.45,167.35,23.776884]
[1729564579268,0.1939621,167.45,167.35,23.876884]
[1729564579468,0.1939621,167.45,167.35,23.776884]
[1729564579683,0.1939621,167.45,167.34,22.81634882]
[1729564580379,0.1939621,167.45,167.34,22.91634882]
[1729564582885,0.2939621,167.45,167.34,22.91634882]
[1729564583067,0.1939621,167.45,167.34,22.91634882]
[1729564583579,0.1939621,167.45,167.35,23.776884]
[1729564583788,0.1939621,167.45,167.35,23.876884]
[1729564583972,0.1939621,167.45,167.35,23.776884]
[1729564584173,0.1939621,167.45,167.35,23.876884]
[1729564587196,0.1939621,167.45,167.35,23.776884]
[1729564587688,0.2939621,167.45,167.34,15.7177]
[1729564588495,0.2939621,167.45,167.34,14.7177]
[1729564604001,0.2939621,167.45,167.33,6.22052152]
[1729564604002,0.1,167.41,167.33,6.22052152]
[1729564604505,0.1,167.4,167.3,16.4207]
[1729564604814,0.1,167.4,167.31,6.22165623]
[1729564606200,0.1,167.38,167.31,6.22165623]
[1729564606706,23.876884,167.39,167.27,9.43610716]
[1729564606910,0.1,167.38,167.29,6.22353291]
[1729564607098,0.1,167.37,167.29,6.22353291]
[1729564607300,0.1,167.36,167.29,6.22353291]
[1729564607700,0.1,167.34,167.22,16.4207]
[1729564608009,0.1,167.33,167.25,6.22019628]
[1729564608213,0.1,167.34,167.22,16.4207]
[1729564608511,0.1,167.34,167.24,6.22033424]
[1729564609310,0.1,167.33,167.24,6.22033424]
[1729564609513,0.1,167.34,167.24,6.22033424]
[1729564610108,0.1,167.33,167.24,6.22033424]
[1729564611808,0.1,167.31,167.24,6.22033424]
[1729564612120,0.1,167.31,167.16,70.0]
[1729564612121,0.1,167.28,167.17,33.04317747]
[1729564612324,0.1,167.27,167.2,6.21800436]
[1729564612492,0.1,167.26,167.2,6.21800436]
[1729564612688,0.1,167.26,167.17,21.2247]
[1729564612888,0.1,167.26,167.18,6.21792915]
[1729564613206,23.776884,167.28,167.18,6.21792915]
[1729564613207,0.1,167.27,167.18,6.21792915]
[1729564613995,0.1,167.26,167.17,21.2247]
[1729564614512,0.1,167.27,167.17,21.2247]
[1729564615298,23.876884,167.28,167.17,21.2247]
[1729564615519,0.1,167.27,167.17,21.2247]
[1729564615700,23.876884,167.28,167.17,21.2247]
[1729564615897,0.1,167.28,167.17,21.2247]
[1729564616497,0.1,167.27,167.17,21.2247]
[1729564617521,0.1,167.3,167.18,23.776884]
[1729564618020,22.8749,167.32,167.19,0.1]
[1729564618021,22.9749,167.32,167.19,0.1]
[1729564618720,22.9749,167.32,167.2,0.1]
[1729564620301,22.8749,167.32,167.2,0.1]
[1729564621525,22.8653,167.36,167.24,6.1959]
[1729564621699,22.8653,167.36,167.25,23.776884]
[1729564622018,0.1,167.35,167.24,6.1959]
[1729564622514,22.7653,167.36,167.24,6.1959]
[1729564622515,0.1,167.34,167.24,6.1959]
[1729564622696,0.1,167.32,167.22,15.9815]
[1729564623714,20.0,167.35,167.17,16.3025]
[1729564623715,0.1,167.29,167.17,16.3025]
[1729564623923,0.1,167.28,167.17,16.3025]
[1729564624498,0.1,167.27,167.17,16.3025]
[1729564624712,0.1,167.25,167.17,16.3025]
[1729564625020,0.1,167.25,167.16,12.85347054]
[1729564625199,0.1,167.27,167.16,12.85347054]
[1729564626093,21.4811,167.28,167.16,12.85347054]
[1729564628013,0.1,167.27,167.16,12.85347054]
[1729564630619,0.1,167.27,167.16,6.22007054]
[1729564633322,21.3811,167.28,167.16,6.22007054]
[1729564633519,21.4811,167.28,167.17,23.776884]
[1729564633907,21.3811,167.28,167.17,23.776884]
[1729564635604,21.4811,167.28,167.17,23.776884]
[1729564640417,0.1,167.26,167.16,6.22107667]
[1729564640723,6.0787,167.26,167.16,6.22107667]
[1729564641032,0.1,167.26,167.16,6.22107667]
[1729564647109,0.1,167.24,167.16,6.22107667]
[1729564647311,6.0797,167.24,167.13,16.3025]
[1729564648425,0.1,167.23,167.13,16.3025]
[1729564648632,0.1,167.21,167.13,16.3025]
[1729564648808,0.1,167.21,167.12,6.22273482]
[1729564651114,0.1,167.2,167.12,6.22273482]
[1729564652119,0.1,167.19,167.12,6.22273482]
[1729564652337,6.0823,167.16,167.12,6.22273482]
[1729564652629,0.1,167.15,167.05,15.03]
[1729564652935,0.1,167.15,167.05,21.25175845]
[1729564655910,0.1,167.12,167.05,6.22175845]
[1729564656150,0.1,167.11,167.01,15.363]
[1729564656313,0.1,167.11,167.02,6.22332625]
[1729564656719,6.7228,167.14,167.02,6.22332625]
[1729564657035,0.1,167.13,167.02,6.22332625]
[1729564657333,6.7228,167.14,167.02,6.22332625]
[1729564657721,6.6228,167.14,167.03,24.2065614]
[1729564657923,0.1,167.14,167.03,24.2065614]
[1729564658529,15.9284,167.15,167.03,24.2065614]
[1729564659038,0.1,167.14,167.03,24.2065614]
[1729564659230,15.9284,167.15,167.03,24.2065614]
[1729564659819,0.1,167.14,167.03,24.2065614]
[1729564660137,15.9284,167.15,167.03,24.2065614]
[1729564660441,0.1,167.14,167.03,24.2065614]
[1729564662519,0.1,167.09,167.03,0.4296774]
[1729564662825,0.1,167.07,167.03,0.4296774]
[1729564663237,0.1,167.06,167.03,0.4296774]
[1729564664836,0.1,167.09,167.03,0.4296774]
[1729564665418,0.1,167.08,167.03,0.4296774]
[1729564666237,23.876884,167.1,167.03,0.4296774]
[1729564666541,0.1,167.09,167.03,0.4296774]
[1729564666941,23.876884,167.1,167.03,0.4296774]
[1729564667120,0.1,167.09,167.03,0.4296774]
[1729564667842,23.776884,167.1,167.03,0.4296774]
[1729564668015,0.1,167.11,167.03,0.4296774]
[1729564668341,0.1,167.1,167.03,0.4296774]
[1729564668516,23.876884,167.11,167.03,0.4296774]
[1729564669130,0.1,167.1,167.03,0.4296774]
[1729564669918,0.1,167.06,167.03,0.4296774]
[1729564670133,0.1,167.05,167.03,0.4296774]
[1729564671544,0.1,167.06,167.03,0.4296774]
[1729564671722,0.1,167.05,167.03,0.4296774]
[1729564672938,23.776884,167.07,167.03,0.4296774]
[1729564672939,0.1,167.04,167.03,0.4296774]
[1729564673519,23.876884,167.04,167.03,0.4296774]
[1729564674618,0.1,167.06,167.03,0.4296774]
[1729564675231,0.1,167.04,167.03,0.4296774]
[1729564675527,23.876884,167.04,167.03,0.4296774]
[1729564676756,0.1,167.06,167.03,0.4296774]
[1729564677316,23.876884,167.07,167.03,0.4296774]
[1729564677519,0.1,167.07,167.03,0.4296774]
[1729564677741,0.1,167.06,167.03,0.4296774]
[1729564679543,23.876884,167.04,167.03,0.4296774]
[1729564680338,0.1,167.04,167.03,0.4296774]
[1729564683030,0.1,167.05,167.03,0.4296774]
[1729564683741,0.1,167.07,167.03,0.4296774]
[1729564683945,0.1,167.06,167.03,0.4296774]
[1729564684322,0.1,167.07,167.03,0.4296774]
[1729564685138,0.1,167.05,167.03,0.4296774]
[1729564685446,0.1,167.04,167.03,0.4296774]
[1729564688033,23.876884,167.05,167.03,0.4296774]
[1729564688431,0.1,167.04,167.03,0.4296774]
[1729564688840,0.1,167.05,167.03,0.4296774]
[1729564689437,6.0865,167.04,167.03,0.4296774]
[1729564689643,0.1,167.04,167.03,0.4296774]
[1729564691130,0.1,167.05,167.03,0.4296774]
[1729564691354,0.1,167.04,167.03,0.4296774]
[1729564695656,0.1,167.05,167.03,0.4296774]
[1729564696338,0.1,167.06,167.03,0.4296774]
[1729564698134,0.1,167.05,167.03,0.4296774]
[1729564699235,0.1,167.04,167.03,0.4296774]
[1729564704762,0.1,167.05,167.03,0.4296774]
[1729564706156,0.1,167.06,167.03,0.4296774]
[1729564707862,0.1,167.05,167.03,0.4296774]
[1729564708151,0.1,167.04,167.03,0.4296774]
[1729564714081,23.876884,167.04,167.03,0.4296774]
[1729564714358,29.863384,167.04,167.03,0.37193332]
[1729564717566,6.0865,167.04,167.03,0.37193332]
[1729564717770,0.1,167.04,167.03,0.37193332]
[1729564718766,23.876884,167.04,167.03,0.37193332]
[1729564722873,29.863384,167.04,167.03,0.37193332]
[1729564724155,49.863384,167.04,167.03,0.37193332]
[1729564726053,0.1,167.04,167.03,0.37193332]
[1729564726585,0.1,167.05,167.03,0.37193332]
[1729564730678,0.1,167.04,167.03,0.37193332]
[1729564733981,29.863384,167.04,167.03,0.37193332]
[1729564734163,49.863384,167.04,167.03,0.37193332]
[1729564739681,49.963384,167.04,167.03,0.37193332]
[1729564740869,67.913384,167.04,167.03,0.37193332]
[1729564744983,49.863384,167.04,167.03,0.37193332]
[1729564754173,49.963384,167.04,167.03,0.37193332]
[1729564755875,49.963384,167.04,167.03,3.332e-05]
[1729564757083,67.913384,167.04,167.03,3.332e-05]
[1729564757482,67.913384,167.04,166.91,15.0292]
[1729564757483,0.1,166.93,166.91,15.0292]
[1729564758189,0.1,166.92,166.91,15.0292]
[1729564759184,0.1,166.89,166.87,15.0991]
[1729564759394,0.1,166.91,166.87,15.0991]
[1729564759584,0.1,166.9,166.87,15.0991]
[1729564760689,0.1,166.91,166.87,15.0991]
[1729564761313,23.876884,166.87,166.86,0.6236395]
[1729564761985,0.1,166.87,166.86,0.6236395]
[1729564762880,29.869484,166.87,166.86,0.6236395]
[1729564764387,23.876884,166.87,166.86,0.6236395]
[1729564765102,29.869484,166.87,166.86,0.6236395]
[1729564765307,23.876884,166.87,166.86,0.6236395]
[1729564767508,29.869484,166.87,166.86,0.6236395]
[1729564767988,49.869484,166.87,166.86,0.6236395]
[1729564769395,98.019484,166.87,166.86,3.95e-05]
[1729564769595,105.2550872,166.87,166.86,3.95e-05]
[1729564770319,114.08266391,166.87,166.86,3.95e-05]
[1729564772812,120.3001401,166.87,166.86,3.95e-05]
[1729564773307,135.5528401,166.87,166.86,3.95e-05]
[1729564774009,135.5528401,166.87,166.66,6.21719115]
[1729564774010,0.1,166.75,166.69,16.2008395]
[1729564776212,0.1,166.74,166.69,16.2008395]
[1729564776796,0.1,166.75,166.69,16.2008395]
[1729564777315,0.1,166.76,166.69,16.2008395]
[1729564777812,23.776884,166.78,166.69,16.2008395]
[1729564777813,0.1,166.77,166.69,16.2008395]
[1729564778119,0.1,166.76,166.69,16.2008395]
[1729564778319,6.0968,166.76,166.69,16.2008395]
[1729564778491,0.1,166.76,166.69,16.2008395]
[1729564779603,0.1,166.74,166.69,16.2008395]
[1729564780492,0.1,166.76,166.69,16.2008395]
[1729564781215,0.1,166.75,166.69,16.2008395]
[1729564783309,5.9959,166.78,166.69,16.2008395]
[1729564783310,0.1,166.78,166.69,16.2008395]
[1729564789620,5.9963,166.77,166.69,16.2008395]
[1729564789796,0.1,166.76,166.69,16.2008395]
[1729564789996,0.1,166.75,166.69,16.2008395]
[1729564794008,0.1,166.76,166.69,16.2008395]
[1729564794401,0.1,166.77,166.69,16.2008395]
[1729564795113,0.1,166.78,166.69,16.2008395]
[1729564795313,0.1,166.77,166.69,16.2008395]
[1729564796822,0.1,166.78,166.69,16.2008395]
[1729564797001,0.1,166.77,166.69,16.2008395]
[1729564797321,0.1,166.78,166.69,16.2008395]
[1729564800123,0.1,166.8,166.69,16.2008395]
[1729564800507,0.1,166.79,166.69,16.2008395]
[1729564801009,0.1,166.8,166.69,16.2008395]
[1729564801418,0.1,166.79,166.69,16.2008395]
[1729564802306,0.1,166.82,166.72,23.776884]
[1729564802500,0.1,166.83,166.72,23.776884]
[1729564806825,0.1,166.83,166.73,16.3438]
[1729564813532,33.1282,166.91,166.77,23.776884]
[1729564813533,0.1,166.88,166.77,23.776884]
[1729564813822,0.1,166.89,166.78,6.1728]
[1729564815321,0.1,166.89,166.79,23.776884]
[1729564815836,0.1,166.9,166.79,23.776884]
[1729564816009,0.1,166.9,166.8,15.8995]
[1729564816216,0.1,166.89,166.8,15.8995]
[1729564816415,0.1,166.9,166.8,15.8995]
[1729564816935,0.1,166.89,166.8,15.8995]
[1729564817126,0.1,166.9,166.8,15.8995]
[1729564818540,0.1,166.89,166.8,15.8995]
[1729564836747,0.1,166.92,166.81,23.776884]
[1729564839554,0.1,166.93,166.81,23.776884]
[1729564840149,0.1,166.92,166.81,23.776884]
[1729564842152,0.1,166.93,166.81,23.776884]
[1729564842753,0.1,166.92,166.81,23.776884]
[1729564844248,0.1,166.93,166.81,23.776884]
[1729564844455,0.1,166.93,166.81,31.07646768]
[1729564844655,0.1,166.94,166.81,31.07646768]
[1729564844848,0.1,166.94,166.81,31.17646768]
[1729564845150,0.1,166.94,166.83,23.776884]
[1729564846539,22.1249,166.95,166.83,23.776884]
[1729564846961,0.1,166.94,166.83,23.776884]
[1729564847454,0.1,166.97,166.85,23.776884]
[1729564847654,0.1,166.96,166.85,23.776884]
[1729564849746,0.1,166.95,166.85,23.776884]
[1729564864366,0.1,166.91,166.83,6.21318208]
[1729564870175,0.1,166.92,166.83,6.21318208]
[1729564870372,0.1,166.91,166.83,6.21318208]
[1729564883879,0.1,166.96,166.85,16.3477]
[1729564884066,22.5863,166.97,166.85,16.3477]
[1729564884267,22.5863,166.97,166.86,8.40225357]
[1729564884667,22.5863,166.97,166.87,23.776884]
[1729564887883,22.4863,166.97,166.87,23.776884]
[1729564888285,22.5863,166.97,166.87,23.776884]
[1729564901696,0.1,166.99,166.87,23.776884]
[1729564901988,22.6363,167.01,166.91,23.776884]
[1729564902190,16.0942,167.01,166.91,23.776884]
[1729564902396,0.1,167.03,166.91,23.776884]
[1729564902985,0.1,167.03,166.91,32.17913757]
[1729564911806,0.1,167.04,166.91,32.17913757]
[1729564911987,0.1,167.03,166.91,32.17913757]
[1729564918116,0.1,167.04,166.91,32.17913757]
[1729564918296,0.1,167.03,166.93,23.776884]
[1729564924023,0.1,167.0,166.92,8.40225357]
[1729564924204,0.1,166.98,166.9,16.5549]
[1729564924392,0.1,166.95,166.89,6.22385268]
[1729564924701,0.1,166.95,166.86,16.4237]
[1729564924907,0.1,166.95,166.86,22.65134553]
[1729564930023,0.1,166.94,166.86,22.65134553]
[1729564930202,0.1,166.93,166.86,6.22764553]
[1729564930523,0.1,166.93,166.83,6.3477]
[1729564937027,0.1,166.9,166.82,14.63046879]
[1729564937237,0.1,166.9,166.82,6.22821522]
[1729564941732,0.1,166.9,166.81,15.6721]
[1729564954651,15.3113,166.92,166.82,32.17913757]
[1729564954942,0.1,166.95,166.83,6.2301]
[1729564955114,0.1,166.94,166.84,23.776884]
[1729564956532,0.1,166.93,166.83,6.2301]
[1729564957948,0.1,166.89,166.82,8.40225357]
[1729564958126,0.1,166.89,166.81,15.6721]
[1729564959656,0.1,166.91,166.81,24.07435357]
[1729564960527,0.1,166.9,166.81,24.07435357]
[1729564960733,0.1,166.91,166.81,24.07435357]
[1729564960941,0.1,166.9,166.81,24.07435357]
[1729564961123,0.1,166.91,166.81,24.07435357]
[1729564961445,0.1,166.9,166.81,24.07435357]
[1729564962526,0.1,166.9,166.81,15.6721]
[1729564969436,0.1,166.87,166.8,6.21821667]
[1729564969746,0.1,166.87,166.76,33.58325477]
[1729564969934,0.1,166.87,166.78,6.21168673]
[1729564974659,16.0828,166.89,166.79,23.776884]
[1729564975149,0.1,166.91,166.8,15.833]
[1729564975351,6.21,166.92,166.8,15.833]
[1729564975548,6.11,166.92,166.81,23.776884]
[1729564975741,15.6819,166.93,166.83,23.776884]
[1729564980652,12.6543,166.96,166.83,23.776884]
[1729564980653,0.1,166.95,166.83,23.776884]
[1729564980865,0.1,166.95,166.85,23.776884]
[1729564981452,15.353,166.97,166.85,23.776884]
[1729564981650,15.453,166.97,166.85,23.776884]
[1729564991452,15.453,166.97,166.85,28.28678692]
[1729565001373,6.4267,167.0,166.89,23.776884]
[1729565001669,0.1,166.99,166.89,39.344084]
[1729565006969,6.4267,167.0,166.89,39.344084]
[1729565007176,0.1,166.99,166.89,39.344084]
[1729565009779,6.4267,167.0,166.89,39.344084]
[1729565010070,0.1,166.99,166.89,39.344084]
[1729565010652,6.4267,167.0,166.89,39.344084]
[1729565010852,0.1,166.99,166.89,39.344084]
[1729565031061,0.1,166.99,166.89,47.28411535]
[1729565043071,6.3267,167.0,166.89,47.28411535]
[1729565043273,15.2514,167.01,166.9,7.94003135]
[1729565043502,6.0874,167.02,166.9,7.94003135]
[1729565043503,0.1,167.02,166.91,23.776884]
[1729565043892,0.1,167.02,166.91,7.94003135]
[1729565044199,0.1,167.01,166.91,7.94003135]
[1729565049706,0.1,167.02,166.91,7.94003135]
[1729565049998,0.1,167.03,166.93,21.2323]
[1729565058889,0.1,167.03,166.93,29.17233135]
[1729565060889,21.2868,167.05,166.94,31.71691535]
[1729565060890,0.1,167.04,166.94,31.71691535]
[1729565063691,15.4006,167.05,166.94,31.71691535]
[1729565064302,0.1,167.04,166.94,31.71691535]
[1729565068112,23.776884,167.07,166.95,15.3645]
[1729565068317,0.1,167.04,166.95,23.30453135]
[1729565069012,0.1,167.04,166.96,27.02645477]
[1729565069198,0.1,167.04,166.95,23.30453135]
[1729565073420,0.1,167.05,166.96,23.776884]
[1729565074902,0.1,167.07,166.96,31.71691535]
[1729565075114,0.1,167.07,166.97,7.94003135]
[1729565075320,6.7166,167.08,166.98,23.776884]
[1729565075619,0.1,167.07,166.98,23.776884]
[1729565079736,6.7166,167.08,166.98,23.776884]
[1729565080606,0.1,167.07,166.98,23.776884]
[1729565090629,6.6166,167.08,166.95,21.53903686]
[1729565090630,0.1,167.02,166.95,21.53903686]
[1729565090834,0.1,167.02,166.95,6.17453686]
[1729565091134,0.1,167.02,166.91,16.5744]
[1729565091135,0.1,166.99,166.91,16.5744]
[1729565091718,0.1,167.02,166.91,24.07296993]
[1729565091936,6.6027,167.03,166.91,24.07296993]
[1729565092440,0.1,167.02,166.92,23.776884]
[1729565094523,6.6027,167.03,166.92,23.776884]
[1729565094728,0.1,167.02,166.92,23.776884]
[1729565097715,0.1,167.01,166.92,23.776884]
[1729565100845,0.1,166.99,166.91,16.5744]
[1729565101034,0.1,166.98,166.9,6.18362686]
[1729565101841,0.1,166.96,166.9,6.18362686]
[1729565102645,0.1,166.96,166.88,6.20044843]
[1729565110036,0.1,166.95,166.88,6.20044843]
[1729565110340,0.1,166.94,166.88,6.20044843]
[1729565110547,0.1,166.94,166.85,12.77246554]
[1729565110846,0.1,166.94,166.85,18.99265959]
[1729565111149,0.1,166.93,166.85,18.99265959]
[1729565111647,0.1,166.93,166.85,12.77246554]
[1729565112218,0.1,166.9,166.83,49.79557834]
[1729565112449,15.92,166.92,166.83,6.21842357]
[1729565112450,0.1,166.88,166.83,6.21842357]
[1729565112658,0.1,166.88,166.78,15.0767]
[1729565112945,0.1,166.88,166.8,6.22054084]
[1729565114129,0.1,166.87,166.8,6.22054084]
[1729565114835,0.1,166.86,166.8,6.22054084]
[1729565115040,0.1,166.86,166.78,15.0767]
[1729565116032,0.1,166.85,166.77,6.21924288]
[1729565116228,0.1,166.85,166.75,13.02726971]
[1729565116229,0.1,166.85,166.75,5.52869978]
[1729565116427,0.1,166.83,166.75,5.52869978]
[1729565116650,0.1,166.83,166.75,6.22170861]
[1729565121158,0.1,166.8,166.75,6.22170861]
[1729565122535,0.1,166.8,166.71,5.52869978]
[1729565122731,0.1,166.8,166.69,16.6163395]
[1729565122961,0.1,166.8,166.71,6.22465707]
[1729565123260,0.1,166.76,166.71,6.22465707]
[1729565123434,0.1,166.75,166.71,6.22465707]
[1729565123637,0.1,166.73,166.69,0.6236395]